fUSD/lending_fUSD_20251201
["ID","MTS","AMOUNT","RATE_DAILY","PERIOD"]
[395265739,1764575443164,-1000.0,0.00016149,2]
[395265740,1764575443173,-151.0,0.00016149,2]
[395265741,1764575443182,-1000.0,0.00016149,2]
[395265742,1764575443191,-1000.0,0.00016149,2]
[395265743,1764575443200,-248.71531821,0.00016149,2]
[395265744,1764575443211,-1000.0,0.00016149,2]
[395265745,1764575443219,-1000.0,0.00016149,2]
[395265746,1764575443228,-1000.0,0.00016149,2]
[395265747,1764575443238,-1000.0,0.00016149,2]
[395265748,1764575443247,-1000.0,0.00016149,2]
[395265749,1764575443256,-1000.0,0.00016149,2]
[395265750,1764575443266,-1000.0,0.00016149,2]
[395265751,1764575443275,-1000.0,0.00016149,2]
[395265752,1764575443284,-1000.0,0.00016149,2]
[395265753,1764575443293,-1000.0,0.00016149,2]
[395265754,1764575443302,-1000.0,0.00016149,2]
[395265755,1764575443318,-1000.0,0.00016149,2]
[395265756,1764575443328,-1000.0,0.00016149,2]
[395265757,1764575443338,-1000.0,0.00016149,2]
[395265758,1764575443347,-1000.0,0.00016149,2]
[395265759,1764575443356,-1000.0,0.00016149,2]
[395265760,1764575443365,-1328.07662834,0.00016149,2]
[395265761,1764575443374,-1000.0,0.00016149,2]
[395265762,1764575443385,-1000.0,0.00016149,2]
[395265763,1764575443395,-3000.0,0.00016149,2]
[395265764,1764575443404,-1000.0,0.00016149,2]
[395265765,1764575443413,-500.0,0.00016149,2]
[395265766,1764575443422,-1000.0,0.00016149,2]
[395265767,1764575443432,-3000.0,0.00016149,2]
[395265768,1764575443441,-500.0,0.00016149,2]
[395265769,1764575443451,-151.0,0.00016149,2]
[395265770,1764575443460,-3000.0,0.00016149,2]
[395265771,1764575443469,-500.0,0.00016149,2]
[395265772,1764575443478,-3000.0,0.00016149,2]
[395265773,1764575443487,-500.0,0.00016149,2]
[395265774,1764575443497,-3000.0,0.00016149,2]
[395265775,1764575443506,-500.0,0.00016149,2]
[395265776,1764575443515,-3000.0,0.00016149,2]
[395265777,1764575443524,-500.0,0.00016149,2]
[395265778,1764575443534,-3000.0,0.00016149,2]
[395265779,1764575443543,-500.0,0.00016149,2]
[395265780,1764575443552,-3000.0,0.00016149,2]
[395265781,1764575443561,-500.0,0.00016149,2]
[395265782,1764575443572,-3000.0,0.00016149,2]
[395265783,1764575443581,-500.0,0.00016149,2]
[395265784,1764575443591,-3000.0,0.00016149,2]
[395265785,1764575443600,-500.0,0.00016149,2]
[395265786,1764575443609,-3000.0,0.00016149,2]
[395265787,1764575443618,-500.0,0.00016149,2]
[395265789,1764575443627,-187.78006525,0.00016149,2]
[395265791,1764575443636,-3000.0,0.00016149,2]
[395265792,1764575443646,-500.0,0.00016149,2]
[395265793,1764575443655,-3000.0,0.00016149,2]
[395265794,1764575443664,-500.0,0.00016149,2]
[395265795,1764575443674,-3000.0,0.00016149,2]
[395265796,1764575443684,-500.0,0.00016149,2]
[395265797,1764575443693,-151.0,0.00016149,2]
[395265798,1764575443707,-500.0,0.00016149,2]
[395265799,1764575443717,-500.0,0.00016149,2]
[395265800,1764575443727,-500.0,0.00016149,2]
[395265801,1764575443737,-500.0,0.00016149,2]
[395265802,1764575443746,-500.0,0.00016149,2]
[395265803,1764575443756,-500.0,0.00016149,2]
[395265804,1764575443765,-500.0,0.00016149,2]
[395265805,1764575443775,-500.0,0.00016149,2]
[395265806,1764575443784,-500.0,0.00016149,2]
[395265807,1764575443793,-500.0,0.00016149,2]
[395265808,1764575443803,-500.0,0.00016149,2]
[395265809,1764575443812,-500.0,0.00016149,2]
[395265810,1764575443822,-500.0,0.00016149,2]
[395265811,1764575443831,-500.0,0.00016149,2]
[395265812,1764575443841,-151.0,0.00016165,2]
[395265813,1764575443850,-150.0,0.00016192,2]
[395265814,1764575443860,-150.0,0.00016192,2]
[395265815,1764575443869,-300.0,0.00016192,2]
[395265816,1764575443878,-150.0,0.00016192,2]
[395265817,1764575443887,-150.53,0.00016192,2]
[395265818,1764575443897,-3300.0,0.00016204,2]
[395265819,1764575443906,-3300.0,0.00016259,2]
[395265820,1764575443916,-3300.0,0.00016314,2]
[395265821,1764575443926,-604.07312412,0.00016326,2]
[395265822,1764575443937,-736.0,0.00016353,2]
[395265823,1764575443946,-823.0,0.00016363,2]
[395265824,1764575443956,-3300.0,0.00016369,2]
[395265825,1764575443966,-1000.0,0.00016398,2]
[395265826,1764575443975,-1000.0,0.00016398,2]
[395265827,1764575443984,-495.9241853,0.00016398,2]
[395265828,1764575443993,-500.70186377,0.00016398,2]
[395265829,1764575444003,-503.91137404,0.00016398,2]
[395265830,1764575444012,-1000.0,0.00016398,2]
[395265831,1764575444021,-575.43559045,0.00016398,2]
[395265832,1764575444030,-160.17885855,0.00016398,2]
[395265833,1764575444039,-453.79493009,0.00016398,2]
[395265834,1764575444048,-1000.0,0.00016398,2]
[395265835,1764575444057,-1000.0,0.00016398,2]
[395265836,1764575444066,-501.24854415,0.00016398,2]
[395265837,1764575444075,-1000.0,0.00016398,2]
[395265838,1764575444085,-654.41744648,0.00016398,2]
[395265839,1764575444094,-1000.0,0.00016398,2]
[395265840,1764575444105,-3300.0,0.00016424,2]
[395265841,1764575444114,-277.0,0.00016433,2]
[395265842,1764575444123,-1000.0,0.00016435,2]
[395265843,1764575444133,-567.78,0.00016438,2]
[395265844,1764575444143,-322.63,0.00016438,2]
[395265845,1764575444152,-800.0,0.00016438,2]
[395265846,1764575444161,-163.95,0.0001644,2]
[395265847,1764575444170,-5129.0,0.00016453,2]
[395265848,1764575444180,-600.0,0.00016472,2]
[395265849,1764575444189,-3300.0,0.00016479,2]
[395265850,1764575444199,-3292.0,0.00016482,2]
[395265851,1764575444209,-3300.0,0.00016534,2]
[395265852,1764575444219,-702.79,0.00016563,2]
[395265853,1764575444228,-5129.0,0.00016564,2]
[395265854,1764575444237,-3300.0,0.00016589,2]
[395265855,1764575444246,-3862.77,0.00016624,2]
[395265856,1764575444254,-181.067,0.00016624,2]
[395265857,1764575444264,-3300.0,0.00016644,2]
[395265858,1764575444273,-2745.82517817,0.0001666,2]
[395265859,1764575444283,-1248.0,0.00016682,2]
[395265860,1764575444292,-1043.4101039,0.00016691,2]
[395265861,1764575444302,-194.72792766,0.00016697,2]
[395265862,1764575444314,-533.88981491,0.00016697,2]
[395265863,1764575444324,-151.0,0.00016697,2]
[395265864,1764575444332,-642.94,0.00016697,2]
[395265865,1764575444341,-151.0,0.00016697,2]
[395265866,1764575444351,-151.0,0.00016697,2]
[395265867,1764575444361,-194.72792766,0.00016697,2]
[395265868,1764575444370,-3300.0,0.00016699,2]
[395265869,1764575444379,-1000.0,0.000167,2]
[395265870,1764575444390,-567.78,0.00016712,3]
[395265871,1764575444399,-151.0,0.00016713,2]
[395265872,1764575444407,-222.76990664,0.00016726,2]
[395265873,1764575444416,-3300.0,0.00016754,2]
[395265874,1764575444425,-277.0,0.00016782,2]
[395265875,1764575444434,-1000.0,0.000168,2]
[395265876,1764575444442,-3300.0,0.00016809,2]
[395265877,1764575444452,-246.86,0.00016829,2]
[395265878,1764575444461,-2000.0,0.00016864,2]
[395265879,1764575444470,-200.0,0.00016864,2]
[395265880,1764575444479,-3300.0,0.00016864,2]
[395265881,1764575444488,-151.0,0.00016897,2]
[395265882,1764575444497,-500.0,0.00016899,2]
[395265883,1764575444506,-500.0,0.00016899,2]
[395265884,1764575444516,-500.0,0.00016899,2]
[395265885,1764575444525,-2902.1273,0.000169,2]
[395265886,1764575444534,-2649.0442,0.000169,2]
[395265887,1764575444543,-3264.43238174,0.000169,2]
[395265888,1764575444552,-1000.0,0.000169,2]
[395265889,1764575444561,-1169.06569469,0.000169,2]
[395265890,1764575444570,-230.80853104,0.000169,2]
[395265891,1764575444579,-1241.13824556,0.000169,2]
[395265892,1764575444589,-500.0,0.000169,2]
[395265893,1764575444598,-500.0,0.000169,2]
[395265894,1764575444607,-500.0,0.000169,2]
[395265895,1764575444616,-500.0,0.000169,2]
[395265896,1764575444626,-500.0,0.000169,2]
[395265897,1764575444635,-500.0,0.000169,2]
[395265898,1764575444644,-500.0,0.000169,2]
[395265899,1764575444653,-468.47698181,0.000169,2]
[395265900,1764575444663,-7432.0,0.000169,2]
[395265901,1764575444673,-1737.69823801,0.00016905,2]
[395265902,1764575444684,-388.10298294,0.00016946,2]
[395265903,1764575444694,-1500.0,0.00016946,2]
[395265904,1764575444703,-1000.74233697,0.00016946,2]
[395265905,1764575444713,-271.24315862,0.00016946,2]
[395265906,1764575444722,-1500.0,0.00016946,2]
[395265907,1764575444732,-1500.0,0.00016946,2]
[395265908,1764575444741,-1500.0,0.00016946,2]
[395265909,1764575444750,-500.0,0.00016956,2]
[395265910,1764575444759,-500.0,0.00016956,2]
[395265911,1764575444768,-150.0,0.00016956,2]
[395265912,1764575444777,-150.0,0.00016956,2]
[395265913,1764575444786,-150.0,0.00016956,2]
[395265914,1764575444796,-150.0,0.00016956,2]
[395265915,1764575444805,-500.0,0.00016956,2]
[395265916,1764575444814,-3296.0,0.00016956,2]
[395265917,1764575444824,-150.0,0.00016956,2]
[395265918,1764575444833,-500.0,0.00016956,2]
[395265919,1764575444843,-977.0,0.00016956,2]
[395265920,1764575444853,-13093.0,0.00016959,2]
[395265921,1764575444862,-277.0,0.00016965,2]
[395265922,1764575444871,-150.0,0.00016973,2]
[395265923,1764575444880,-567.78,0.00016986,4]
[395265924,1764575444891,-1248.0,0.00016989,2]
[395265925,1764575444901,-1287.42138508,0.0001699,2]
[395265926,1764575444911,-1287.42138508,0.0001699,2]
[395265927,1764575444921,-1000.0,0.00016994,2]
[395265928,1764575444930,-151.0,0.00016997,2]
[395265929,1764575444939,-1000.6191,0.00016999,2]
[395265930,1764575444948,-300.0,0.00016999,2]
[395265931,1764575444958,-500.0,0.00016999,2]
[395265932,1764575444967,-500.0,0.00016999,2]
[395265933,1764575444976,-500.0,0.00016999,2]
[395265934,1764575444985,-500.0,0.00016999,2]
[395265935,1764575444995,-500.0,0.00016999,2]
[395265936,1764575445004,-500.0,0.00016999,2]
[395265937,1764575445013,-500.0,0.00016999,2]
[395265938,1764575445022,-500.0,0.00016999,2]
[395265939,1764575445031,-500.0,0.00016999,2]
[395265940,1764575445040,-500.0,0.00016999,2]
[395265941,1764575445049,-500.0,0.00016999,2]
[395265942,1764575445059,-626.36189094,0.00016999,2]
[395265943,1764575445068,-500.0,0.00016999,2]
[395265944,1764575445078,-500.0,0.00016999,2]
[395265945,1764575445088,-140433.4715248,0.00016999,2]
[395265946,1764575445096,-307.29501972,0.00016999,2]
[395265947,1764575445106,-300.0,0.00016999,2]
[395265948,1764575445115,-500.0,0.00016999,2]
[395265949,1764575445125,-542.1,0.00016999,2]
[395265950,1764575445134,-300.0,0.00016999,2]
[395265951,1764575445143,-15846.3883428,0.00016999,2]
[395265952,1764575445152,-500.0,0.00016999,2]
[395265953,1764575445161,-500.0,0.00016999,2]
[395265954,1764575445170,-500.0,0.00016999,2]
[395265955,1764575445179,-500.0,0.00016999,2]
[395265956,1764575445188,-510.9486006,0.00016999,2]
[395265957,1764575445197,-500.0,0.00016999,2]
[395265958,1764575445206,-500.0,0.00016999,2]
[395265959,1764575445215,-500.0,0.00016999,2]
[395265960,1764575445223,-500.0,0.00016999,2]
[395265961,1764575445232,-500.0,0.00016999,2]
[395265962,1764575445241,-500.0,0.00016999,2]
[395265963,1764575445250,-500.0,0.00016999,2]
[395265964,1764575445259,-500.0,0.00016999,2]
[395265965,1764575445268,-500.0,0.00016999,2]
[395265966,1764575445277,-500.0,0.00016999,2]
[395265967,1764575445286,-500.0,0.00016999,2]
[395265968,1764575445295,-567.09385656,0.00016999,2]
[395265969,1764575445305,-7089.2852838,0.00016999,2]
[395265970,1764575445318,-500.0,0.00016999,2]
[395265971,1764575445327,-150.61555063,0.00016999,2]
[395265972,1764575445336,-702.79,0.00016999,2]
[395265973,1764575445346,-702.79,0.00016999,2]
[395265974,1764575445356,-702.79,0.00016999,2]
[395265975,1764575445364,-702.79,0.00016999,2]
[395265976,1764575445374,-702.79,0.00016999,2]
[395265977,1764575445384,-702.79,0.00016999,2]
[395265978,1764575445393,-702.79,0.00016999,2]
[395265979,1764575445402,-702.79,0.00016999,2]
[395265980,1764575445411,-702.79,0.00016999,2]
[395265981,1764575445420,-702.79,0.00016999,2]
[395265982,1764575445429,-702.79,0.00016999,2]
[395265983,1764575445438,-702.79,0.00016999,2]
[395265984,1764575445448,-702.79,0.00016999,2]
[395265985,1764575445458,-702.79,0.00016999,2]
[395265986,1764575445467,-702.79,0.00016999,2]
[395265987,1764575445476,-702.79,0.00016999,2]
[395265988,1764575445486,-702.79,0.00016999,2]
[395265989,1764575445495,-702.95746161,0.00016999,2]
[395265990,1764575445507,-18734.8658516,0.00016999,2]
[395265991,1764575445516,-300.0,0.00016999,2]
[395265992,1764575445525,-5264886.72606472,0.00017,2]
[395265998,1764575446700,-936523.32708813,0.00017,2]
[395265999,1764575446710,-5947.40599635,0.00017,2]
[395266000,1764575446719,-6290126.3903481,0.00017,2]
[395266001,1764575446730,-200.0,0.00017,2]
[395266002,1764575446739,-150.0,0.00017,2]
[395266003,1764575446748,-150.0,0.00017,2]
[395266004,1764575446757,-653.03326041,0.00017,2]
[395266005,1764575446767,-233.27270666,0.00017,2]
[395266006,1764575446775,-640.86492592,0.00017,2]
[395266007,1764575446784,-150.0,0.00017,2]
[395266008,1764575446793,-911.70063418,0.00017,2]
[395266009,1764575446802,-1029.45513101,0.00017,2]
[395266010,1764575446813,-1000.0,0.00017,2]
[395266011,1764575446824,-1000.0,0.00017,2]
[395266012,1764575446834,-1000.0,0.00017,2]
[395266013,1764575446843,-1000.0,0.00017,2]
[395266014,1764575446851,-1000.0,0.00017,2]
[395266015,1764575446862,-1000.0,0.00017,2]
[395266016,1764575446871,-1000.0,0.00017,2]
[395266017,1764575446880,-1000.0,0.00017,2]
[395266018,1764575446890,-1000.0,0.00017,2]
[395266019,1764575446900,-1000.0,0.00017,2]
[395266020,1764575446909,-1000.0,0.00017,2]
[395266021,1764575446918,-1000.0,0.00017,2]
[395266022,1764575446927,-2000.0,0.00017,2]
[395266023,1764575446937,-1000.0,0.00017,2]
[395266024,1764575446946,-1000.0,0.00017,2]
[395266025,1764575446955,-1000.0,0.00017,2]
[395266026,1764575446964,-1000.0,0.00017,2]
[395266027,1764575446974,-1000.0,0.00017,2]
[395266028,1764575446983,-1000.0,0.00017,2]
[395266029,1764575446992,-200.0,0.00017,2]
[395266030,1764575447002,-1000.0,0.00017,2]
[395266031,1764575447011,-1000.0,0.00017,2]
[395266032,1764575447020,-1000.0,0.00017,2]
[395266033,1764575447029,-1000.0,0.00017,2]
[395266034,1764575447038,-1000.0,0.00017,2]
[395266035,1764575447047,-1000.0,0.00017,2]
[395266036,1764575447056,-1000.0,0.00017,2]
[395266037,1764575447066,-1000.0,0.00017,2]
[395266038,1764575447075,-1000.0,0.00017,2]
[395266039,1764575447084,-1008.27314937,0.00017,2]
[395266040,1764575447094,-250.0,0.00017,2]
[395266041,1764575447103,-250.0,0.00017,2]
[395266042,1764575447113,-250.0,0.00017,2]
[395266043,1764575447123,-250.0,0.00017,2]
[395266044,1764575447132,-250.0,0.00017,2]
[395266045,1764575447141,-250.0,0.00017,2]
[395266046,1764575447151,-250.0,0.00017,2]
[395266047,1764575447160,-250.0,0.00017,2]
[395266048,1764575447169,-250.0,0.00017,2]
[395266049,1764575447180,-250.0,0.00017,2]
[395266050,1764575447188,-250.0,0.00017,2]
[395266051,1764575447197,-250.0,0.00017,2]
[395266052,1764575447206,-250.0,0.00017,2]
[395266053,1764575447215,-250.0,0.00017,2]
[395266054,1764575447224,-250.0,0.00017,2]
[395266055,1764575447233,-250.0,0.00017,2]
[395266056,1764575447242,-250.0,0.00017,2]
[395266057,1764575447251,-250.0,0.00017,2]
[395266058,1764575447259,-203.9,0.00017,2]
[395266059,1764575447269,-509.82653,0.00017,2]
[395266060,1764575447279,-1603.0,0.00017,2]
[395266061,1764575447289,-1322.0,0.00017,2]
[395266062,1764575447298,-610.0,0.00017,2]
[395266063,1764575447309,-3442.0,0.00017,2]
[395266064,1764575447319,-1258.0,0.00017,2]
[395266065,1764575447328,-656.0,0.00017,2]
[395266066,1764575447336,-151.0,0.00017,2]
[395266067,1764575447344,-151.0,0.00017,2]
[395266068,1764575447354,-492.222886,0.00017,2]
[395266069,1764575447363,-492.222886,0.00017,2]
[395266070,1764575447373,-151.0,0.00017,2]
[395266071,1764575447383,-151.0,0.00017,2]
[395266072,1764575447393,-151.0,0.00017,2]
[395266073,1764575447402,-492.222886,0.00017,2]
[395266074,1764575447412,-151.0,0.00017,2]
[395266075,1764575447421,-161.936816,0.00017,2]
[395266076,1764575447430,-566.523054,0.00017,2]
[395266077,1764575447439,-492.222886,0.00017,2]
[395266078,1764575447449,-226.251306,0.00017,2]
[395266079,1764575447458,-566.523054,0.00017,2]
[395266080,1764575447467,-151.0,0.00017,2]
[395266081,1764575447476,-566.523054,0.00017,2]
[395266082,1764575447485,-151.0,0.00017,2]
[395266083,1764575447495,-151.0,0.00017,2]
[395266084,1764575447504,-566.523054,0.00017,2]
[395266085,1764575447512,-151.0,0.00017,2]
[395266086,1764575447520,-229.682716,0.00017,2]
[395266087,1764575447529,-162.060403,0.00017,2]
[395266088,1764575447538,-152.505957,0.00017,2]
[395266089,1764575447547,-229.682716,0.00017,2]
[395266090,1764575447557,-151.0,0.00017,2]
[395266091,1764575447568,-151.0,0.00017,2]
[395266092,1764575447577,-187.312082,0.00017,2]
[395266093,1764575447586,-151.0,0.00017,2]
[395266094,1764575447595,-229.682716,0.00017,2]
[395266095,1764575447605,-187.312082,0.00017,2]
[395266096,1764575447614,-151.0,0.00017,2]
[395266097,1764575447624,-151.0,0.00017,2]
[395266098,1764575447633,-151.0,0.00017,2]
[395266099,1764575447643,-229.682716,0.00017,2]
[395266100,1764575447654,-151.0,0.00017,2]
[395266101,1764575447665,-187.312082,0.00017,2]
[395266102,1764575447674,-490.240797,0.00017,2]
[395266103,1764575447683,-151.0,0.00017,2]
[395266104,1764575447693,-151.0,0.00017,2]
[395266105,1764575447702,-151.0,0.00017,2]
[395266106,1764575447712,-187.312082,0.00017,2]
[395266107,1764575447722,-490.240797,0.00017,2]
[395266108,1764575447731,-151.0,0.00017,2]
[395266109,1764575447741,-490.240797,0.00017,2]
[395266110,1764575447750,-490.240797,0.00017,2]
[395266111,1764575447759,-151.647299,0.00017,2]
[395266112,1764575447768,-282.012813,0.00017,2]
[395266113,1764575447778,-282.012813,0.00017,2]
[395266114,1764575447787,-151.0,0.00017,2]
[395266115,1764575447796,-151.0,0.00017,2]
[395266116,1764575447805,-282.012813,0.00017,2]
[395266117,1764575447814,-151.0,0.00017,2]
[395266118,1764575447823,-282.012813,0.00017,2]
[395266119,1764575447832,-151.0,0.00017,2]
[395266120,1764575447841,-151.0,0.00017,2]
[395266121,1764575447850,-1000.0,0.00017,2]
[395266122,1764575447858,-152.188758,0.00017,2]
[395266123,1764575447867,-151.0,0.00017,2]
[395266124,1764575447876,-172.228409,0.00017,2]
[395266125,1764575447885,-172.228409,0.00017,2]
[395266126,1764575447895,-256.473275,0.00017,2]
[395266127,1764575447904,-172.228409,0.00017,2]
[395266128,1764575447915,-172.228409,0.00017,2]
[395266129,1764575447924,-151.0,0.00017,2]
[395266130,1764575447933,-256.473275,0.00017,2]
[395266131,1764575447943,-256.473275,0.00017,2]
[395266132,1764575447952,-151.0,0.00017,2]
[395266133,1764575447961,-256.473275,0.00017,2]
[395266134,1764575447970,-1916.265192,0.00017,2]
[395266135,1764575447979,-1916.265192,0.00017,2]
[395266136,1764575447990,-180.616917,0.00017,2]
[395266137,1764575448007,-180.616917,0.00017,2]
[395266138,1764575448017,-1916.265192,0.00017,2]
[395266139,1764575448026,-151.0,0.00017,2]
[395266140,1764575448035,-180.616917,0.00017,2]
[395266141,1764575448044,-1916.265192,0.00017,2]
[395266142,1764575448054,-180.616917,0.00017,2]
[395266143,1764575448063,-613.532965,0.00017,2]
[395266144,1764575448072,-151.0,0.00017,2]
[395266145,1764575448081,-613.532965,0.00017,2]
[395266146,1764575448090,-151.0,0.00017,2]
[395266147,1764575448100,-151.0,0.00017,2]
[395266148,1764575448110,-151.0,0.00017,2]
[395266149,1764575448119,-152.370624,0.00017,2]
[395266150,1764575448128,-613.532965,0.00017,2]
[395266151,1764575448139,-151.0,0.00017,2]
[395266152,1764575448148,-282.230873,0.00017,2]
[395266153,1764575448157,-151.0,0.00017,2]
[395266154,1764575448166,-151.0,0.00017,2]
[395266155,1764575448175,-613.532965,0.00017,2]
[395266156,1764575448184,-157.429867,0.00017,2]
[395266157,1764575448193,-151.0,0.00017,2]
[395266158,1764575448202,-151.0,0.00017,2]
[395266159,1764575448211,-151.0,0.00017,2]
[395266160,1764575448220,-224.973636,0.00017,2]
[395266161,1764575448229,-151.0,0.00017,2]
[395266162,1764575448239,-151.0,0.00017,2]
[395266163,1764575448248,-2584.377316,0.00017,2]
[395266164,1764575448259,-2584.377316,0.00017,2]
[395266165,1764575448270,-2584.377316,0.00017,2]
[395266166,1764575448278,-168.391392,0.00017,2]
[395266167,1764575448287,-2584.377316,0.00017,2]
[395266168,1764575448298,-238.302421,0.00017,2]
[395266169,1764575448310,-238.302421,0.00017,2]
[395266170,1764575448323,-238.302421,0.00017,2]
[395266171,1764575448334,-238.302421,0.00017,2]
[395266172,1764575448343,-151.436372,0.00017,2]
[395266173,1764575448354,-255.39613,0.00017,2]
[395266174,1764575448365,-179.513814,0.00017,2]
[395266175,1764575448375,-179.513814,0.00017,2]
[395266176,1764575448388,-255.39613,0.00017,2]
[395266177,1764575448398,-179.513814,0.00017,2]
[395266178,1764575448407,-6507.0,0.00017,2]
[395266179,1764575448416,-255.39613,0.00017,2]
[395266180,1764575448425,-179.513814,0.00017,2]
[395266181,1764575448435,-153.692526,0.00017,2]
[395266182,1764575448446,-255.39613,0.00017,2]
[395266183,1764575448458,-151.0,0.00017,2]
[395266184,1764575448468,-562.0,0.00017,2]
[395266185,1764575448477,-151.0,0.00017,2]
[395266186,1764575448488,-151.0,0.00017,2]
[395266187,1764575448497,-151.0,0.00017,2]
[395266188,1764575448506,-192.812082,0.00017,2]
[395266189,1764575448516,-151.0,0.00017,2]
[395266190,1764575448524,-4704.0,0.00017,2]
[395266191,1764575448533,-250.0,0.00017,2]
[395266192,1764575448543,-192.812082,0.00017,2]
[395266193,1764575448552,-151.0,0.00017,2]
[395266194,1764575448560,-192.812082,0.00017,2]
[395266195,1764575448570,-151.0,0.00017,2]
[395266196,1764575448579,-151.0,0.00017,2]
[395266197,1764575448588,-192.812082,0.00017,2]
[395266198,1764575448598,-151.0,0.00017,2]
[395266199,1764575448607,-1577.0,0.00017007,2]
[395266200,1764575448618,-600.0,0.0001702,2]
[395266201,1764575448627,-277.0,0.0001702,2]
[395266202,1764575448636,-1248.0,0.00017053,2]
[395266203,1764575448645,-277.0,0.00017059,2]
[395266204,1764575448654,-1577.0,0.00017062,2]
[395266205,1764575448664,-1248.0,0.00017066,2]
[395266206,1764575448674,-507.29,0.00017068,2]
[395266207,1764575448683,-500.0,0.00017093,2]
[395266208,1764575448691,-500.0,0.00017093,2]
[395266209,1764575448700,-207.38496735,0.00017093,2]
[395266210,1764575448709,-150.0,0.00017093,2]
[395266211,1764575448718,-215.9215938,0.00017093,2]
[395266212,1764575448727,-150.0,0.00017093,2]
[395266213,1764575448737,-500.0,0.00017093,2]
[395266214,1764575448745,-3296.0,0.00017093,2]
[395266215,1764575448754,-163.45254521,0.00017093,2]
[395266216,1764575448763,-500.0,0.00017093,2]
[395266217,1764575448772,-977.0,0.00017093,2]
[395266218,1764575448781,-1000.0,0.000171,2]
[395266219,1764575448790,-1248.0,0.0001711,2]
[395266220,1764575448799,-1248.0,0.00017112,2]
[395266221,1764575448808,-277.0,0.00017126,2]
[395266222,1764575448818,-299.0,0.00017157,2]
[395266223,1764575448828,-200.0,0.0001717,2]
[395266224,1764575448837,-200.0,0.0001717,2]
[395266225,1764575448848,-809.1724359,0.00017205,2]
[395266226,1764575448858,-1600.0,0.00017224,2]
[395266227,1764575448868,-500.0,0.0001723,2]
[395266228,1764575448878,-500.0,0.0001723,2]
[395266229,1764575448888,-150.0,0.0001723,2]
[395266230,1764575448897,-212.94335419,0.0001723,2]
[395266231,1764575448905,-500.0,0.0001723,2]
[395266232,1764575448915,-3296.0,0.0001723,2]
[395266233,1764575448924,-163.1222244,0.0001723,2]
[395266234,1764575448932,-977.0,0.0001723,2]
[395266235,1764575448942,-201.93286099,0.00017245,2]
[395266236,1764575448952,-553.64373807,0.00017245,2]
[395266237,1764575448961,-151.0,0.00017245,2]
[395266238,1764575448970,-666.72878,0.00017245,2]
[395266239,1764575448979,-151.0,0.00017245,2]
[395266240,1764575448988,-151.0,0.00017245,2]
[395266241,1764575448998,-201.93286099,0.00017245,2]
[395266242,1764575449007,-567.78,0.0001726,5]
[395266243,1764575449016,-429.35,0.0001726,5]
[395266244,1764575449026,-151.0,0.00017261,2]
[395266245,1764575449035,-1043.4101039,0.00017333,2]